[Event "Late-Titled-Tuesday-Blitz-September-26-2023"]
[Site "Chess.com"]
[Date "2023.09.26"]
[Round "7"]
[White "FMVolodymyrSakun"]
[Black "YEIKO2017"]
[Result "1-0"]
[WhiteElo "2648"]
[BlackElo "2476"]
[TimeControl "180+1"]
[EndTime "15:14:44 PDT"]
[Termination "FMVolodymyrSakun won on time"]

1. d4 {[%clk 0:02:57.4]} 1... Nf6 {[%clk 0:02:59.1]} 2. c4 {[%clk 0:02:56.8]}
2... e5 {[%clk 0:02:59.1]} 3. dxe5 {[%clk 0:02:56.2]} 3... Ng4 {[%clk
0:02:59.6]} 4. Nf3 {[%clk 0:02:56.3]} 4... Bc5 {[%clk 0:02:59.5]} 5. e3 {[%clk
0:02:53.6]} 5... Nc6 {[%clk 0:02:59.8]} 6. Be2 {[%clk 0:02:51.4]} 6... O-O
{[%clk 0:02:59.2]} 7. O-O {[%clk 0:02:51.3]} 7... Re8 {[%clk 0:02:58.1]} 8. b3
{[%clk 0:02:49.3]} 8... Ngxe5 {[%clk 0:02:54.4]} 9. Bb2 {[%clk 0:02:49.4]} 9...
Nxf3+ {[%clk 0:02:53.8]} 10. Bxf3 {[%clk 0:02:49.1]} 10... Ne5 {[%clk
0:02:54.7]} 11. Be2 {[%clk 0:02:44.1]} 11... a5 {[%clk 0:02:46.6]} 12. Nc3
{[%clk 0:02:42.6]} 12... Ra6 {[%clk 0:02:46.3]} 13. Ne4 {[%clk 0:02:40.9]} 13...
Ba7 {[%clk 0:02:39]} 14. Bd4 {[%clk 0:02:28.4]} 14... Rh6 {[%clk 0:01:44.7]} 15.
Bxa7 {[%clk 0:02:09.5]} 15... Qh4 {[%clk 0:01:44.2]} 16. f4 {[%clk 0:02:09.5]}
16... Qxh2+ {[%clk 0:01:40.8]} 17. Kf2 {[%clk 0:02:09.7]} 17... Nc6 {[%clk
0:01:09.7]} 18. Ng3 {[%clk 0:01:32.7]} 18... Rh3 {[%clk 0:00:51.7]} 19. Nf5
{[%clk 0:01:08.7]} 19... d6 {[%clk 0:00:33.6]} 20. Bg4 {[%clk 0:00:59.7]} 20...
Bxf5 {[%clk 0:00:28.6]} 21. Bxh3 {[%clk 0:00:59]} 21... Bxh3 {[%clk 0:00:27.6]}
22. Qf3 {[%clk 0:00:53.8]} 22... Bxg2 {[%clk 0:00:19.8]} 23. Qxg2 {[%clk
0:00:52.5]} 23... Qxg2+ {[%clk 0:00:20.4]} 24. Kxg2 {[%clk 0:00:52.9]} 24...
Nxa7 {[%clk 0:00:20.9]} 25. Kf3 {[%clk 0:00:43.3]} 25... Nc6 {[%clk 0:00:21.2]}
26. a3 {[%clk 0:00:41.9]} 26... f5 {[%clk 0:00:20.3]} 27. Rab1 {[%clk
0:00:39.7]} 27... Re4 {[%clk 0:00:20.7]} 28. Rfc1 {[%clk 0:00:38.9]} 28... h6
{[%clk 0:00:19.3]} 29. b4 {[%clk 0:00:39]} 29... axb4 {[%clk 0:00:19.2]} 30.
axb4 {[%clk 0:00:39.9]} 30... g5 {[%clk 0:00:18.9]} 31. b5 {[%clk 0:00:37.8]}
31... g4+ {[%clk 0:00:18.6]} 32. Kf2 {[%clk 0:00:37.5]} 32... Na5 {[%clk
0:00:17.4]} 33. c5 {[%clk 0:00:37.7]} 33... Nc4 {[%clk 0:00:12.6]} 34. cxd6
{[%clk 0:00:21.5]} 34... cxd6 {[%clk 0:00:12.1]} 35. Rc3 {[%clk 0:00:21.6]}
35... d5 {[%clk 0:00:10.9]} 36. Rd1 {[%clk 0:00:20.6]} 36... g3+ {[%clk
0:00:05.2]} 37. Kxg3 {[%clk 0:00:18.3]} 37... Nxe3 {[%clk 0:00:04.9]} 38. Rdd3
{[%clk 0:00:16.5]} 38... d4 {[%clk 0:00:04.6]} 39. Rc7 {[%clk 0:00:14.7]} 39...
h5 {[%clk 0:00:03.1]} 40. Rxb7 {[%clk 0:00:14.3]} 40... h4+ {[%clk 0:00:03.4]}
41. Kxh4 {[%clk 0:00:14.6]} 41... Rxf4+ {[%clk 0:00:03.7]} 42. Kg5 {[%clk
0:00:15.1]} 42... Rg4+ {[%clk 0:00:03.8]} 43. Kf6 {[%clk 0:00:15.3]} 43... f4
{[%clk 0:00:03]} 44. Rxd4 {[%clk 0:00:14.8]} 1-0

[Event "Late-Titled-Tuesday-Blitz-September-26-2023"]
[Site "Chess.com"]
[Date "2023.09.26"]
[Round "7"]
[White "jk13"]
[Black "DrCeltic"]
[Result "1-0"]
[WhiteElo "2626"]
[BlackElo "2453"]
[TimeControl "180+1"]
[EndTime "15:14:45 PDT"]
[Termination "jk13 won by resignation"]

1. e4 {[%clk 0:03:00.9]} 1... c5 {[%clk 0:02:59.9]} 2. c3 {[%clk 0:03:01]} 2...
Nf6 {[%clk 0:02:59.9]} 3. e5 {[%clk 0:03:01.5]} 3... Nd5 {[%clk 0:03:00.6]} 4.
Bc4 {[%clk 0:03:02.4]} 4... e6 {[%clk 0:03:00.3]} 5. Nf3 {[%clk 0:03:02]} 5...
d6 {[%clk 0:03:00.4]} 6. d4 {[%clk 0:03:02.7]} 6... cxd4 {[%clk 0:03:00.5]} 7.
cxd4 {[%clk 0:03:03.6]} 7... Be7 {[%clk 0:02:59.3]} 8. O-O {[%clk 0:03:03.4]}
8... O-O {[%clk 0:02:59.5]} 9. Qe2 {[%clk 0:03:04.2]} 9... Nc6 {[%clk
0:02:59.3]} 10. a3 {[%clk 0:03:02.1]} 10... b6 {[%clk 0:02:58.3]} 11. Bd2 {[%clk
0:03:00.5]} 11... Bb7 {[%clk 0:02:49.6]} 12. Nc3 {[%clk 0:03:00]} 12... Nxc3
{[%clk 0:02:48.3]} 13. Bxc3 {[%clk 0:03:00.9]} 13... Rc8 {[%clk 0:02:36.1]} 14.
Rfe1 {[%clk 0:02:53.8]} 14... Qc7 {[%clk 0:02:30.4]} 15. Bd3 {[%clk 0:02:53.4]}
15... Rfd8 {[%clk 0:02:23.3]} 16. Rad1 {[%clk 0:02:50.8]} 16... dxe5 {[%clk
0:02:17.3]} 17. dxe5 {[%clk 0:02:50.6]} 17... Na5 {[%clk 0:02:05.8]} 18. Nd4
{[%clk 0:02:40.1]} 18... Bd5 {[%clk 0:01:53.6]} 19. Rc1 {[%clk 0:02:33.6]} 19...
Bc4 {[%clk 0:01:41.4]} 20. Bxa5 {[%clk 0:02:09.3]} 20... Bxd3 {[%clk 0:01:35.4]}
21. Rxc7 {[%clk 0:01:52]} 21... Bxe2 {[%clk 0:01:35.4]} 22. Rxe7 {[%clk
0:01:07.7]} 22... Rxd4 {[%clk 0:01:34.1]} 23. Bc3 {[%clk 0:00:54.3]} 23... Rdd8
{[%clk 0:01:14.5]} 24. h3 {[%clk 0:00:47]} 24... Bd3 {[%clk 0:01:09.5]} 25. Rxa7
{[%clk 0:00:46.8]} 25... b5 {[%clk 0:01:10.2]} 26. Re3 {[%clk 0:00:41.8]} 26...
h6 {[%clk 0:01:09.3]} 27. Kh2 {[%clk 0:00:37.7]} 27... g5 {[%clk 0:01:08]} 28.
Rg3 {[%clk 0:00:33.6]} 28... Bg6 {[%clk 0:01:07.2]} 29. Rg4 {[%clk 0:00:29.3]}
29... Bf5 {[%clk 0:01:04.8]} 30. Rb4 {[%clk 0:00:29.4]} 30... Rd5 {[%clk
0:01:04.8]} 31. Rb7 {[%clk 0:00:27.9]} 31... Rcc5 {[%clk 0:01:02.4]} 32. f3
{[%clk 0:00:20.5]} 32... Kg7 {[%clk 0:01:00.7]} 33. Kg3 {[%clk 0:00:18.1]} 33...
Bd3 {[%clk 0:00:59.3]} 34. Rb8 {[%clk 0:00:17.7]} 34... Bc4 {[%clk 0:00:58.5]}
35. h4 {[%clk 0:00:16.6]} 35... Rd3 {[%clk 0:00:58.1]} 36. hxg5 {[%clk
0:00:16.3]} 36... hxg5 {[%clk 0:00:58.2]} 37. Rb6 {[%clk 0:00:16.1]} 37... Rcd5
{[%clk 0:00:57.5]} 38. a4 {[%clk 0:00:15.8]} 38... Re3 {[%clk 0:00:44.5]} 39.
axb5 {[%clk 0:00:15.5]} 39... Be2 {[%clk 0:00:41.4]} 40. Kf2 {[%clk 0:00:13.8]}
40... Rdd3 {[%clk 0:00:39.3]} 41. Rd4 {[%clk 0:00:09.6]} 41... Bd1 {[%clk
0:00:35.6]} 42. Rxd3 {[%clk 0:00:08.5]} 42... Rxd3 {[%clk 0:00:36.5]} 43. Rd6
{[%clk 0:00:07.9]} 43... Bc2 {[%clk 0:00:32]} 44. b6 {[%clk 0:00:07.1]} 44...
Rd5 {[%clk 0:00:22.7]} 45. Rxd5 {[%clk 0:00:06.9]} 1-0

[Event "Late-Titled-Tuesday-Blitz-September-26-2023"]
[Site "Chess.com"]
[Date "2023.09.26"]
[Round "7"]
[White "Journey_to_GrandMaster_YT"]
[Black "AEMEffi"]
[Result "1-0"]
[WhiteElo "2601"]
[BlackElo "2373"]
[TimeControl "180+1"]
[EndTime "15:14:45 PDT"]
[Termination "Journey_to_GrandMaster_YT won on time"]

1. d4 {[%clk 0:03:00]} 1... d5 {[%clk 0:02:59.6]} 2. c4 {[%clk 0:03:00.1]} 2...
c6 {[%clk 0:03:00.5]} 3. Nc3 {[%clk 0:03:00.5]} 3... Nf6 {[%clk 0:03:00.3]} 4.
Nf3 {[%clk 0:03:00.4]} 4... a6 {[%clk 0:03:00.3]} 5. c5 {[%clk 0:03:00.2]} 5...
Bg4 {[%clk 0:02:57.1]} 6. Bf4 {[%clk 0:02:46.2]} 6... Nbd7 {[%clk 0:02:45]} 7.
Qb3 {[%clk 0:02:26.1]} 7... Ra7 {[%clk 0:02:44.5]} 8. e3 {[%clk 0:02:22.7]} 8...
Bxf3 {[%clk 0:02:42.2]} 9. gxf3 {[%clk 0:02:22.8]} 9... e5 {[%clk 0:02:40.9]}
10. Bg3 {[%clk 0:02:23]} 10... Nh5 {[%clk 0:02:28.6]} 11. Bh3 {[%clk 0:02:11.2]}
11... Nxg3 {[%clk 0:02:27]} 12. hxg3 {[%clk 0:02:10.9]} 12... exd4 {[%clk
0:02:17.1]} 13. exd4 {[%clk 0:02:10.9]} 13... Be7 {[%clk 0:02:15.5]} 14. Qc2
{[%clk 0:02:00]} 14... g6 {[%clk 0:02:07.6]} 15. Kf1 {[%clk 0:01:41.8]} 15...
Bf6 {[%clk 0:01:57.9]} 16. Re1+ {[%clk 0:01:40.9]} 16... Kf8 {[%clk 0:01:58]}
17. Qd2 {[%clk 0:01:39.9]} 17... Bg5 {[%clk 0:01:34.5]} 18. f4 {[%clk
0:01:39.4]} 18... Bf6 {[%clk 0:01:28.7]} 19. g4 {[%clk 0:01:35.3]} 19... g5
{[%clk 0:00:48.6]} 20. fxg5 {[%clk 0:01:33.5]} 20... Bxg5 {[%clk 0:00:49.5]} 21.
f4 {[%clk 0:01:33.8]} 21... Qf6 {[%clk 0:00:49.9]} 22. Ne2 {[%clk 0:01:26.9]}
22... Bh4 {[%clk 0:00:36]} 23. Rd1 {[%clk 0:01:24.2]} 23... b6 {[%clk
0:00:29.2]} 24. Kg2 {[%clk 0:01:07.2]} 24... bxc5 {[%clk 0:00:27]} 25. g5 {[%clk
0:01:05.9]} 25... Qe7 {[%clk 0:00:05.1]} 26. Qd3 {[%clk 0:00:48.5]} 26... h6
{[%clk 0:00:03.5]} 27. Bxd7 {[%clk 0:00:47.5]} 27... hxg5 {[%clk 0:00:03.6]} 28.
Bf5 {[%clk 0:00:20.5]} 28... Rb7 {[%clk 0:00:03.6]} 29. b3 {[%clk 0:00:19.9]}
29... c4 {[%clk 0:00:03.5]} 30. bxc4 {[%clk 0:00:19.4]} 30... Rb2 {[%clk
0:00:03.8]} 31. Rd2 {[%clk 0:00:18.9]} 31... dxc4 {[%clk 0:00:04.4]} 32. Qc3
{[%clk 0:00:18.7]} 32... Rxd2 {[%clk 0:00:04.3]} 33. Qxd2 {[%clk 0:00:19]} 33...
Qf6 {[%clk 0:00:03.4]} 34. Qc2 {[%clk 0:00:17.5]} 34... gxf4 {[%clk 0:00:02.7]}
35. Nxf4 {[%clk 0:00:16.2]} 35... Qg5+ {[%clk 0:00:03]} 36. Kf3 {[%clk
0:00:16.2]} 36... Qg3+ {[%clk 0:00:03.5]} 37. Ke4 {[%clk 0:00:16.5]} 37... Rh6
{[%clk 0:00:03]} 38. Qg2 {[%clk 0:00:15.7]} 38... Rf6 {[%clk 0:00:02]} 39. Qxg3
{[%clk 0:00:15.6]} 39... Bxg3 {[%clk 0:00:02.9]} 40. Nh5 {[%clk 0:00:15.5]}
40... Rh6 {[%clk 0:00:02.1]} 41. Nxg3 {[%clk 0:00:15.4]} 41... Rd6 {[%clk
0:00:01.6]} 42. Rh8+ {[%clk 0:00:14.4]} 42... Ke7 {[%clk 0:00:01.5]} 43. Rh2
{[%clk 0:00:12.8]} 1-0

[Event "Late-Titled-Tuesday-Blitz-September-26-2023"]
[Site "Chess.com"]
[Date "2023.09.26"]
[Round "7"]
[White "ZuraTqebuchava"]
[Black "Nekoo04"]
[Result "0-1"]
[WhiteElo "2239"]
[BlackElo "2313"]
[TimeControl "180+1"]
[EndTime "15:14:49 PDT"]
[Termination "Nekoo04 won on time"]

1. e4 {[%clk 0:03:00.4]} 1... c5 {[%clk 0:02:58.1]} 2. Nf3 {[%clk 0:03:00]} 2...
d6 {[%clk 0:02:57.9]} 3. Bb5+ {[%clk 0:03:00.2]} 3... Bd7 {[%clk 0:02:58]} 4.
Bxd7+ {[%clk 0:03:00]} 4... Qxd7 {[%clk 0:02:58.9]} 5. c4 {[%clk 0:03:00.4]}
5... Nc6 {[%clk 0:02:58.7]} 6. O-O {[%clk 0:02:54.6]} 6... Nf6 {[%clk
0:02:56.2]} 7. Nc3 {[%clk 0:02:54.8]} 7... g6 {[%clk 0:02:56.1]} 8. d4 {[%clk
0:02:54.8]} 8... cxd4 {[%clk 0:02:57]} 9. Nxd4 {[%clk 0:02:55.5]} 9... Bg7
{[%clk 0:02:57.5]} 10. Nc2 {[%clk 0:02:46.7]} 10... O-O {[%clk 0:02:55.3]} 11.
h3 {[%clk 0:02:40.8]} 11... Rfc8 {[%clk 0:02:53.7]} 12. Be3 {[%clk 0:02:36.7]}
12... Na5 {[%clk 0:02:34]} 13. b3 {[%clk 0:02:28.6]} 13... b5 {[%clk 0:02:31.9]}
14. Nxb5 {[%clk 0:02:18.5]} 14... Nxe4 {[%clk 0:02:31.1]} 15. Bd4 {[%clk
0:02:18.3]} 15... e5 {[%clk 0:02:11.4]} 16. Bb2 {[%clk 0:02:06.2]} 16... Rab8
{[%clk 0:01:39.7]} 17. Qd5 {[%clk 0:01:34.4]} 17... Rxb5 {[%clk 0:01:27.4]} 18.
Qxe4 {[%clk 0:01:16.4]} 18... Nxc4 {[%clk 0:01:22.5]} 19. bxc4 {[%clk
0:01:03.6]} 19... Rxb2 {[%clk 0:01:20.2]} 20. Ne3 {[%clk 0:01:04.1]} 20... Qc6
{[%clk 0:01:05.6]} 21. Qg4 {[%clk 0:00:42]} 21... f5 {[%clk 0:00:19.6]} 22. Qd1
{[%clk 0:00:39.3]} 22... Kh8 {[%clk 0:00:11.3]} 23. a4 {[%clk 0:00:29.8]} 23...
f4 {[%clk 0:00:10.9]} 24. Nd5 {[%clk 0:00:22.1]} 24... Qxc4 {[%clk 0:00:10.3]}
25. Qg4 {[%clk 0:00:15.7]} 25... Rcb8 {[%clk 0:00:06.8]} 26. Rac1 {[%clk
0:00:13.5]} 26... Qxd5 {[%clk 0:00:05.9]} 27. Rc8+ {[%clk 0:00:10.1]} 27... Rxc8
{[%clk 0:00:06.2]} 28. Qxc8+ {[%clk 0:00:10.2]} 28... Qg8 {[%clk 0:00:07.1]} 29.
Qc3 {[%clk 0:00:09.6]} 29... e4 {[%clk 0:00:06.9]} 30. Qc6 {[%clk 0:00:08.5]}
30... Qb3 {[%clk 0:00:05.6]} 31. Qe8+ {[%clk 0:00:07.3]} 31... Qg8 {[%clk
0:00:05]} 32. Qc6 {[%clk 0:00:07.4]} 32... e3 {[%clk 0:00:04.8]} 33. fxe3 {[%clk
0:00:06.6]} 33... fxe3 {[%clk 0:00:05.7]} 34. Qxd6 {[%clk 0:00:05.5]} 34... e2
{[%clk 0:00:05.4]} 35. Re1 {[%clk 0:00:04.5]} 35... Bc3 {[%clk 0:00:05.2]} 36.
Kh2 {[%clk 0:00:02.3]} 36... h6 {[%clk 0:00:04.3]} 0-1

[Event "Late-Titled-Tuesday-Blitz-September-26-2023"]
[Site "Chess.com"]
[Date "2023.09.26"]
[Round "7"]
[White "Mariia89"]
[Black "cthake"]
[Result "0-1"]
[WhiteElo "2068"]
[BlackElo "1906"]
[TimeControl "180+1"]
[EndTime "15:14:50 PDT"]
[Termination "cthake won on time"]

1. d4 {[%clk 0:03:00]} 1... c5 {[%clk 0:02:57.7]} 2. d5 {[%clk 0:02:58.8]} 2...
d6 {[%clk 0:02:57.7]} 3. Nc3 {[%clk 0:02:58.7]} 3... e5 {[%clk 0:02:55.5]} 4.
dxe6 {[%clk 0:02:58.2]} 4... Bxe6 {[%clk 0:02:53.7]} 5. e4 {[%clk 0:02:58.4]}
5... Nc6 {[%clk 0:02:52.3]} 6. Bb5 {[%clk 0:02:54.5]} 6... g6 {[%clk 0:02:41.4]}
7. Nf3 {[%clk 0:02:52.5]} 7... Bg7 {[%clk 0:02:41.3]} 8. O-O {[%clk 0:02:51.9]}
8... Ne7 {[%clk 0:02:40.8]} 9. Nd5 {[%clk 0:02:41.8]} 9... O-O {[%clk
0:02:38.6]} 10. Bg5 {[%clk 0:02:36.6]} 10... h6 {[%clk 0:02:01.7]} 11. Bxc6
{[%clk 0:02:14.7]} 11... hxg5 {[%clk 0:01:43.7]} 12. Bxb7 {[%clk 0:02:08.9]}
12... Rb8 {[%clk 0:01:40.5]} 13. Ba6 {[%clk 0:02:08.6]} 13... Rxb2 {[%clk
0:01:35.3]} 14. a4 {[%clk 0:01:37.6]} 14... Nxd5 {[%clk 0:01:34.8]} 15. exd5
{[%clk 0:01:36.1]} 15... Bf5 {[%clk 0:01:34.7]} 16. c4 {[%clk 0:01:28.1]} 16...
Rb6 {[%clk 0:01:34.2]} 17. Bb5 {[%clk 0:01:22.3]} 17... a6 {[%clk 0:01:28.6]}
18. a5 {[%clk 0:01:14.9]} 18... Rxb5 {[%clk 0:01:19.6]} 19. cxb5 {[%clk
0:01:13.7]} 19... Bxa1 {[%clk 0:01:19.4]} 20. Qxa1 {[%clk 0:01:13.2]} 20... Bd3
{[%clk 0:01:17.9]} 21. Re1 {[%clk 0:00:47.1]} 21... Bxb5 {[%clk 0:01:17]} 22. h3
{[%clk 0:00:41.3]} 22... Bc4 {[%clk 0:00:50.5]} 23. Qc1 {[%clk 0:00:29.8]} 23...
Bxd5 {[%clk 0:00:47.7]} 24. Nxg5 {[%clk 0:00:29.5]} 24... Re8 {[%clk 0:00:40.3]}
25. Rd1 {[%clk 0:00:28.6]} 25... Re5 {[%clk 0:00:38.4]} 26. h4 {[%clk 0:00:22]}
26... Qxa5 {[%clk 0:00:37]} 27. Qf4 {[%clk 0:00:17.9]} 27... Re1+ {[%clk
0:00:35.6]} 28. Rxe1 {[%clk 0:00:17]} 28... Qxe1+ {[%clk 0:00:35.7]} 29. Kh2
{[%clk 0:00:17.9]} 29... Qe5 {[%clk 0:00:35.6]} 30. Kg3 {[%clk 0:00:15.2]} 30...
Qxf4+ {[%clk 0:00:34.6]} 31. Kxf4 {[%clk 0:00:16.1]} 31... a5 {[%clk 0:00:34.9]}
32. g4 {[%clk 0:00:15.1]} 32... a4 {[%clk 0:00:33.7]} 33. h5 {[%clk 0:00:10.4]}
33... gxh5 {[%clk 0:00:33.1]} 34. gxh5 {[%clk 0:00:11.2]} 34... a3 {[%clk
0:00:33.1]} 35. h6 {[%clk 0:00:09.2]} 35... a2 {[%clk 0:00:32.1]} 36. h7+ {[%clk
0:00:09.9]} 36... Kg7 {[%clk 0:00:29.9]} 37. Ke3 {[%clk 0:00:07.7]} 37... a1=Q
{[%clk 0:00:29.6]} 38. f4 {[%clk 0:00:08.6]} 38... Qc3+ {[%clk 0:00:29.3]} 39.
Kf2 {[%clk 0:00:09.1]} 39... Qd2+ {[%clk 0:00:29.3]} 40. Kg3 {[%clk 0:00:09.3]}
40... Qe3+ {[%clk 0:00:29.7]} 41. Kg4 {[%clk 0:00:09.9]} 41... Be4 {[%clk
0:00:29.1]} 42. h8=Q+ {[%clk 0:00:06.5]} 42... Kxh8 {[%clk 0:00:26.7]} 43. Nxf7+
{[%clk 0:00:07.4]} 43... Kg7 {[%clk 0:00:26.2]} 44. Nxd6 {[%clk 0:00:07.5]}
44... Qf3+ {[%clk 0:00:26.1]} 45. Kg5 {[%clk 0:00:07]} 45... c4 {[%clk
0:00:25.8]} 46. Nxc4 {[%clk 0:00:02.8]} 46... Qg2+ {[%clk 0:00:25.2]} 0-1

[Event "Late-Titled-Tuesday-Blitz-September-26-2023"]
[Site "Chess.com"]
[Date "2023.09.26"]
[Round "7"]
[White "filipluczak05"]
[Black "venturov"]
[Result "0-1"]
[WhiteElo "2647"]
[BlackElo "2501"]
[TimeControl "180+1"]
[EndTime "15:14:51 PDT"]
[Termination "venturov won by resignation"]

1. d4 {[%clk 0:02:59.7]} 1... Nf6 {[%clk 0:02:59.1]} 2. Nc3 {[%clk 0:02:58.9]}
2... d5 {[%clk 0:02:58.3]} 3. Bf4 {[%clk 0:02:56]} 3... e6 {[%clk 0:02:53.3]} 4.
e3 {[%clk 0:02:55.7]} 4... a6 {[%clk 0:02:50.7]} 5. g4 {[%clk 0:02:49.2]} 5...
h6 {[%clk 0:02:48.7]} 6. h4 {[%clk 0:02:43.7]} 6... c5 {[%clk 0:02:46.5]} 7. Qf3
{[%clk 0:02:41.8]} 7... cxd4 {[%clk 0:02:46.3]} 8. exd4 {[%clk 0:02:42.1]} 8...
Nc6 {[%clk 0:02:45.8]} 9. O-O-O {[%clk 0:02:41.7]} 9... Bd6 {[%clk 0:02:42]} 10.
Nge2 {[%clk 0:02:38]} 10... Qc7 {[%clk 0:02:35]} 11. Bxd6 {[%clk 0:02:33]} 11...
Qxd6 {[%clk 0:02:35.9]} 12. g5 {[%clk 0:02:33.6]} 12... hxg5 {[%clk 0:02:34.7]}
13. hxg5 {[%clk 0:02:34.5]} 13... Rxh1 {[%clk 0:02:34.4]} 14. Qxh1 {[%clk
0:02:35.4]} 14... Nd7 {[%clk 0:02:32]} 15. Qh8+ {[%clk 0:02:24]} 15... Qf8
{[%clk 0:02:31.8]} 16. Qh4 {[%clk 0:02:18.6]} 16... Nb6 {[%clk 0:02:22.4]} 17.
Nf4 {[%clk 0:02:05.1]} 17... g6 {[%clk 0:02:21.3]} 18. Bd3 {[%clk 0:01:59.8]}
18... Bd7 {[%clk 0:02:20]} 19. Nxg6 {[%clk 0:01:52.9]} 19... fxg6 {[%clk
0:02:18.9]} 20. Bxg6+ {[%clk 0:01:53.8]} 20... Kd8 {[%clk 0:02:15.3]} 21. Bd3
{[%clk 0:01:51.7]} 21... Kc7 {[%clk 0:02:11.9]} 22. g6 {[%clk 0:01:50.4]} 22...
Re8 {[%clk 0:01:49.6]} 23. Qg3+ {[%clk 0:01:42.9]} 23... Qd6 {[%clk 0:01:45.5]}
24. Qg5 {[%clk 0:01:40]} 24... Ne7 {[%clk 0:01:26]} 25. Ne2 {[%clk 0:01:30]}
25... Ng8 {[%clk 0:01:13.1]} 26. Ng3 {[%clk 0:01:21.1]} 26... Qe7 {[%clk
0:01:11]} 27. Qe5+ {[%clk 0:01:17.3]} 27... Qd6 {[%clk 0:01:07.2]} 28. Qg5
{[%clk 0:01:17.3]} 28... Qe7 {[%clk 0:01:07.2]} 29. Qe5+ {[%clk 0:01:16]} 29...
Qd6 {[%clk 0:01:07.6]} 30. Qe3 {[%clk 0:01:12.6]} 30... Nc8 {[%clk 0:01:05.5]}
31. f4 {[%clk 0:01:11.7]} 31... Nce7 {[%clk 0:01:05.3]} 32. Rh1 {[%clk 0:01:07]}
32... Nf6 {[%clk 0:01:01.6]} 33. c3 {[%clk 0:00:51.7]} 33... Rg8 {[%clk
0:00:57.3]} 34. Ne2 {[%clk 0:00:26.3]} 34... Nxg6 {[%clk 0:00:53.1]} 35. Rh6
{[%clk 0:00:25]} 35... Ng4 {[%clk 0:00:43.2]} 36. Qh3 {[%clk 0:00:25.2]} 36...
Nxh6 {[%clk 0:00:42.5]} 37. Qxh6 {[%clk 0:00:26.1]} 37... Ne7 {[%clk 0:00:39.8]}
38. Kc2 {[%clk 0:00:21.7]} 38... Nf5 {[%clk 0:00:38.8]} 39. Qf6 {[%clk
0:00:19.6]} 39... Qf8 {[%clk 0:00:37.7]} 40. Qe5+ {[%clk 0:00:19.7]} 40... Qd6
{[%clk 0:00:38]} 41. Qf6 {[%clk 0:00:20]} 41... Rf8 {[%clk 0:00:38.2]} 42. Qg6
{[%clk 0:00:18.8]} 42... Qe7 {[%clk 0:00:38]} 43. Qg1 {[%clk 0:00:17.6]} 43...
Qg7 {[%clk 0:00:37.1]} 44. Qh1 {[%clk 0:00:16.7]} 44... Rg8 {[%clk 0:00:36.7]}
45. Bxf5 {[%clk 0:00:14.1]} 45... exf5 {[%clk 0:00:37.1]} 46. Qxd5 {[%clk
0:00:14.7]} 46... Bc6 {[%clk 0:00:34.6]} 47. Qc5 {[%clk 0:00:14.9]} 47... Qf8
{[%clk 0:00:28.2]} 48. Qe5+ {[%clk 0:00:14.5]} 48... Qd6 {[%clk 0:00:27.1]} 49.
Qxf5 {[%clk 0:00:15.1]} 49... Re8 {[%clk 0:00:25.3]} 50. Ng3 {[%clk 0:00:13.9]}
50... Qe6 {[%clk 0:00:23.8]} 51. Qh7+ {[%clk 0:00:13.8]} 51... Re7 {[%clk
0:00:23.8]} 52. Qd3 {[%clk 0:00:13.4]} 52... Be4 {[%clk 0:00:23.1]} 53. Nxe4
{[%clk 0:00:13.8]} 53... Qxe4 {[%clk 0:00:24]} 54. f5 {[%clk 0:00:14.7]} 54...
Qe2+ {[%clk 0:00:22.9]} 55. Qxe2 {[%clk 0:00:11.9]} 55... Rxe2+ {[%clk
0:00:23.8]} 56. Kd3 {[%clk 0:00:12.4]} 56... Rxb2 {[%clk 0:00:24.2]} 57. Ke3
{[%clk 0:00:13.1]} 57... Kd6 {[%clk 0:00:24]} 0-1

[Event "Late-Titled-Tuesday-Blitz-September-26-2023"]
[Site "Chess.com"]
[Date "2023.09.26"]
[Round "7"]
[White "schack_vit"]
[Black "djano"]
[Result "0-1"]
[WhiteElo "2467"]
[BlackElo "2651"]
[TimeControl "180+1"]
[EndTime "15:14:52 PDT"]
[Termination "djano won by resignation"]

1. c4 {[%clk 0:02:58.9]} 1... e6 {[%clk 0:02:58.5]} 2. g3 {[%clk 0:02:59.2]}
2... d5 {[%clk 0:02:57.9]} 3. Bg2 {[%clk 0:02:59.2]} 3... Nf6 {[%clk 0:02:57.4]}
4. Nf3 {[%clk 0:02:59.3]} 4... Be7 {[%clk 0:02:56.2]} 5. O-O {[%clk 0:02:59.8]}
5... O-O {[%clk 0:02:56.3]} 6. d4 {[%clk 0:02:59.5]} 6... Ne4 {[%clk 0:02:53.1]}
7. b3 {[%clk 0:02:54.4]} 7... c6 {[%clk 0:02:48.6]} 8. Qc2 {[%clk 0:02:51.2]}
8... Nd7 {[%clk 0:02:47.1]} 9. Bf4 {[%clk 0:02:45.5]} 9... b6 {[%clk 0:02:45.4]}
10. Nbd2 {[%clk 0:02:37.4]} 10... f5 {[%clk 0:02:45.5]} 11. Ne5 {[%clk
0:02:36.3]} 11... Nxe5 {[%clk 0:02:41.7]} 12. Bxe5 {[%clk 0:02:37.2]} 12... Bf6
{[%clk 0:02:37.8]} 13. Nf3 {[%clk 0:02:36.7]} 13... Bb7 {[%clk 0:02:35.4]} 14.
Rfd1 {[%clk 0:02:34.2]} 14... Rc8 {[%clk 0:02:34.3]} 15. Ne1 {[%clk 0:02:21.1]}
15... Qe7 {[%clk 0:02:31.5]} 16. Nd3 {[%clk 0:02:20.7]} 16... c5 {[%clk
0:02:17.9]} 17. dxc5 {[%clk 0:02:20.5]} 17... Nxc5 {[%clk 0:02:09]} 18. Bxf6
{[%clk 0:02:14.2]} 18... Qxf6 {[%clk 0:02:06.1]} 19. cxd5 {[%clk 0:02:01.5]}
19... Ne4 {[%clk 0:02:01.2]} 20. Qb2 {[%clk 0:02:00.4]} 20... Nc3 {[%clk
0:01:54.1]} 21. Rd2 {[%clk 0:01:56.5]} 21... Bxd5 {[%clk 0:01:50.5]} 22. Bxd5
{[%clk 0:01:53.4]} 22... Nxd5 {[%clk 0:01:47.4]} 23. Qxf6 {[%clk 0:01:52.8]}
23... gxf6 {[%clk 0:01:45.9]} 24. Nb2 {[%clk 0:01:46.4]} 24... b5 {[%clk
0:01:35.1]} 25. f3 {[%clk 0:01:43.6]} 25... Rf7 {[%clk 0:01:30.8]} 26. Kf2
{[%clk 0:01:43.1]} 26... Rfc7 {[%clk 0:01:28.4]} 27. a4 {[%clk 0:01:43]} 27...
Rc2 {[%clk 0:01:22.9]} 28. Rad1 {[%clk 0:01:41]} 28... Nc3 {[%clk 0:01:05.8]}
29. Rd8+ {[%clk 0:01:40.5]} 29... Rxd8 {[%clk 0:01:01.1]} 30. Rxd8+ {[%clk
0:01:41.4]} 30... Kf7 {[%clk 0:01:01.8]} 31. Nd3 {[%clk 0:01:30.3]} 31... Rxe2+
{[%clk 0:00:57.7]} 32. Kf1 {[%clk 0:01:29.8]} 32... a6 {[%clk 0:00:54.7]} 33.
Rc8 {[%clk 0:01:03.2]} 33... Rc2 {[%clk 0:00:44.2]} 34. Rc6 {[%clk 0:00:58.6]}
34... e5 {[%clk 0:00:30.4]} 35. Rxa6 {[%clk 0:00:53.4]} 35... bxa4 {[%clk
0:00:22.7]} 36. bxa4 {[%clk 0:00:49.6]} 36... e4 {[%clk 0:00:23.2]} 37. fxe4
{[%clk 0:00:48]} 37... fxe4 {[%clk 0:00:24.1]} 38. Nf4 {[%clk 0:00:45.4]} 38...
e3 {[%clk 0:00:24.4]} 39. Ra7+ {[%clk 0:00:44.2]} 39... Ke8 {[%clk 0:00:21.8]}
40. Ra6 {[%clk 0:00:18]} 40... Rxh2 {[%clk 0:00:14.6]} 41. Re6+ {[%clk
0:00:17.9]} 41... Kf7 {[%clk 0:00:15.2]} 42. Rxe3 {[%clk 0:00:18.4]} 42... Nxa4
{[%clk 0:00:15.6]} 43. Nd5 {[%clk 0:00:15.2]} 43... Nc5 {[%clk 0:00:14]} 44.
Re7+ {[%clk 0:00:14.2]} 44... Kf8 {[%clk 0:00:13.6]} 45. Re3 {[%clk 0:00:10.5]}
45... f5 {[%clk 0:00:11.5]} 46. Rf3 {[%clk 0:00:09.3]} 46... Ne4 {[%clk
0:00:12]} 47. Rxf5+ {[%clk 0:00:08.8]} 47... Kg7 {[%clk 0:00:12.7]} 48. Rf3
{[%clk 0:00:09]} 48... Nd2+ {[%clk 0:00:13.1]} 0-1